[Event "Live Chess"]
[Site "Chess.com"]
[Date "2023.05.20"]
[Round "-"]
[White "EdenHazard8"]
[Black "JoeyCage"]
[Result "0-1"]
[WhiteElo "2045"]
[BlackElo "2319"]
[TimeControl "300"]
[EndTime "15:15:05 PDT"]
[Termination "JoeyCage won by resignation"]

1. e4 {[%clk 0:04:58.4]} 1... c5 {[%clk 0:04:57.4]} 2. Nc3 {[%clk 0:04:57.4]}
2... Nc6 {[%clk 0:04:56.4]} 3. f4 {[%clk 0:04:57]} 3... a6 {[%clk 0:04:54]} 4.
Nf3 {[%clk 0:04:56.4]} 4... b5 {[%clk 0:04:53.1]} 5. g3 {[%clk 0:04:55.4]} 5...
Bb7 {[%clk 0:04:51.3]} 6. Bg2 {[%clk 0:04:54.8]} 6... g6 {[%clk 0:04:50]} 7. O-O
{[%clk 0:04:54.3]} 7... Bg7 {[%clk 0:04:49.1]} 8. d3 {[%clk 0:04:53.4]} 8... Nd4
{[%clk 0:04:48.1]} 9. Be3 {[%clk 0:04:51.7]} 9... Nxf3+ {[%clk 0:04:46.3]} 10.
Qxf3 {[%clk 0:04:50.6]} 10... Rc8 {[%clk 0:04:45.1]} 11. Rab1 {[%clk 0:04:46.9]}
11... e6 {[%clk 0:04:43.5]} 12. Ne2 {[%clk 0:04:45.8]} 12... Ne7 {[%clk
0:04:40.8]} 13. c3 {[%clk 0:04:44.8]} 13... O-O {[%clk 0:04:36]} 14. Qf2 {[%clk
0:04:41.9]} 14... Qc7 {[%clk 0:04:33.3]} 15. Bh3 {[%clk 0:04:37.3]} 15... f5
{[%clk 0:04:29.2]} 16. e5 {[%clk 0:04:33.9]} 16... d5 {[%clk 0:04:24.1]} 17. d4
{[%clk 0:04:30.3]} 17... c4 {[%clk 0:04:19.8]} 18. Rfc1 {[%clk 0:04:26.9]} 18...
a5 {[%clk 0:04:17.7]} 19. b3 {[%clk 0:04:23.9]} 19... Bc6 {[%clk 0:04:14.1]} 20.
bxc4 {[%clk 0:04:21.2]} 20... dxc4 {[%clk 0:04:11.7]} 21. Bg2 {[%clk 0:04:20.1]}
21... Nd5 {[%clk 0:04:10.5]} 22. Bxd5 {[%clk 0:04:17.7]} 22... Bxd5 {[%clk
0:04:08.1]} 23. Rxb5 {[%clk 0:04:15.8]} 23... Ba8 {[%clk 0:04:07]} 24. Rcb1
{[%clk 0:04:05.9]} 24... Qc6 {[%clk 0:04:01]} 25. d5 {[%clk 0:04:02.4]} 25...
exd5 {[%clk 0:03:57]} 26. Nd4 {[%clk 0:04:01.4]} 26... Qe8 {[%clk 0:03:51.5]}
27. Rxa5 {[%clk 0:03:54.9]} 27... Rb8 {[%clk 0:03:47.6]} 28. Nb5 {[%clk
0:03:53.6]} 28... Qc6 {[%clk 0:03:41.5]} 29. Bd4 {[%clk 0:03:47.6]} 29... Rfc8
{[%clk 0:03:36.5]} 30. Kg2 {[%clk 0:03:41.7]} 30... Bf8 {[%clk 0:03:34.9]} 31.
Na7 {[%clk 0:03:39.9]} 31... Qc7 {[%clk 0:03:24.8]} 32. Nxc8 {[%clk 0:03:37.9]}
32... Rxb1 {[%clk 0:03:22.4]} 33. Rxa8 {[%clk 0:03:36.7]} 33... Qb7 {[%clk
0:03:20.7]} 34. Nb6 {[%clk 0:03:30.4]} 34... Rxb6 {[%clk 0:03:17.6]} 35. Rxf8+
{[%clk 0:03:29.1]} 35... Kxf8 {[%clk 0:03:16.6]} 36. Bxb6 {[%clk 0:03:28.3]}
36... d4+ {[%clk 0:03:15.6]} 37. Kg1 {[%clk 0:03:22.5]} 37... Qxb6 {[%clk
0:03:14.2]} 38. cxd4 {[%clk 0:03:16]} 38... c3 {[%clk 0:03:11.7]} 39. Qc2 {[%clk
0:02:19.6]} 39... Qxd4+ {[%clk 0:03:06.4]} 40. Kf1 {[%clk 0:02:17]} 40... Qc4+
{[%clk 0:02:59.6]} 41. Ke1 {[%clk 0:02:13.9]} 41... Qc6 {[%clk 0:02:56.1]} 42.
Ke2 {[%clk 0:02:03.7]} 42... Qc4+ {[%clk 0:02:47.4]} 43. Ke1 {[%clk 0:02:00.8]}
43... Ke7 {[%clk 0:02:29.8]} 44. a4 {[%clk 0:01:55.7]} 44... Ke6 {[%clk
0:02:25.8]} 45. a5 {[%clk 0:01:51.4]} 45... Kd5 {[%clk 0:02:17.6]} 46. Qg2+
{[%clk 0:01:46]} 46... Kc5 {[%clk 0:02:13]} 47. Qf2+ {[%clk 0:01:44.9]} 47...
Kb4 {[%clk 0:02:03.9]} 48. Qb6+ {[%clk 0:01:14.4]} 48... Ka3 {[%clk 0:02:01.6]}
49. Qb1 {[%clk 0:01:12.4]} 49... c2 {[%clk 0:01:56.6]} 50. Qc1+ {[%clk
0:01:10.5]} 50... Kb3 {[%clk 0:01:53]} 51. a6 {[%clk 0:01:06.8]} 51... Qxa6
{[%clk 0:01:49.9]} 52. Qe3+ {[%clk 0:01:05.8]} 52... Kb2 {[%clk 0:01:42.3]} 53.
Qd4+ {[%clk 0:01:04.8]} 53... Ka2 {[%clk 0:01:35]} 54. Qd5+ {[%clk 0:01:00.5]}
54... Kb1 {[%clk 0:01:33.1]} 55. Qb3+ {[%clk 0:00:59.2]} 55... Kc1 {[%clk
0:01:32]} 56. Qe3+ {[%clk 0:00:58.7]} 56... Kb2 {[%clk 0:01:30.6]} 57. Qd4+
{[%clk 0:00:56.3]} 57... Kb3 {[%clk 0:01:29.4]} 58. Qd5+ {[%clk 0:00:55.4]}
58... Kc3 {[%clk 0:01:26.3]} 59. Qc5+ {[%clk 0:00:54.2]} 59... Kb2 {[%clk
0:01:23.6]} 60. Qb4+ {[%clk 0:00:52.7]} 60... Kc1 {[%clk 0:01:22.6]} 61. Qd2+
{[%clk 0:00:50.3]} 61... Kb2 {[%clk 0:01:21.6]} 62. Qb4+ {[%clk 0:00:49.7]}
62... Ka2 {[%clk 0:01:18.4]} 63. Qc3 {[%clk 0:00:43.7]} 63... Qa4 {[%clk
0:01:13.4]} 64. Kd2 {[%clk 0:00:39.6]} 64... Kb1 {[%clk 0:01:12.1]} 65. e6
{[%clk 0:00:33.1]} 65... h6 {[%clk 0:00:58.7]} 66. Qc7 {[%clk 0:00:15.9]} 66...
g5 {[%clk 0:00:53.5]} 67. e7 {[%clk 0:00:14.1]} 67... Qd4+ {[%clk 0:00:52.2]}
68. Ke2 {[%clk 0:00:12.6]} 68... Qe4+ {[%clk 0:00:50.7]} 69. Kf2 {[%clk
0:00:11.9]} 69... c1=Q {[%clk 0:00:48.6]} 70. Qb6+ {[%clk 0:00:11.1]} 70... Qb2+
{[%clk 0:00:47.4]} 71. Qxb2+ {[%clk 0:00:09.5]} 71... Kxb2 {[%clk 0:00:47.3]}
0-1

[Event "Live Chess"]
[Site "Chess.com"]
[Date "2023.05.20"]
[Round "-"]
[White "xx_blindpuffin_xx"]
[Black "Alan_Richardson"]
[Result "1-0"]
[WhiteElo "2212"]
[BlackElo "1672"]
[TimeControl "300"]
[EndTime "15:15:07 PDT"]
[Termination "xx_blindpuffin_xx won on time"]

1. d4 {[%clk 0:04:57.1]} 1... Nf6 {[%clk 0:04:57.8]} 2. Bf4 {[%clk 0:04:56.5]}
2... d6 {[%clk 0:04:54.5]} 3. e3 {[%clk 0:04:54.6]} 3... g6 {[%clk 0:04:53.5]}
4. Nf3 {[%clk 0:04:53.3]} 4... Bg7 {[%clk 0:04:52.3]} 5. h3 {[%clk 0:04:52.8]}
5... O-O {[%clk 0:04:50.3]} 6. Be2 {[%clk 0:04:52.2]} 6... Re8 {[%clk
0:04:41.2]} 7. O-O {[%clk 0:04:51.6]} 7... Nbd7 {[%clk 0:04:39.8]} 8. c4 {[%clk
0:04:50.6]} 8... c6 {[%clk 0:04:29.7]} 9. Nc3 {[%clk 0:04:47.3]} 9... Qc7 {[%clk
0:04:27.2]} 10. Qc2 {[%clk 0:04:43.4]} 10... e5 {[%clk 0:04:25]} 11. dxe5 {[%clk
0:04:43.3]} 11... dxe5 {[%clk 0:04:22.8]} 12. Bh2 {[%clk 0:04:42.6]} 12... a5
{[%clk 0:03:58.9]} 13. Rad1 {[%clk 0:04:40.8]} 13... Nc5 {[%clk 0:03:44.1]} 14.
e4 {[%clk 0:04:27.9]} 14... Nfd7 {[%clk 0:03:23.1]} 15. b3 {[%clk 0:04:25.3]}
15... Ne6 {[%clk 0:03:07.2]} 16. Na4 {[%clk 0:04:13.2]} 16... Nf4 {[%clk
0:03:03]} 17. c5 {[%clk 0:04:07.1]} 17... b5 {[%clk 0:02:39.5]} 18. cxb6 {[%clk
0:04:03.5]} 18... Nxb6 {[%clk 0:02:38.5]} 19. Nc5 {[%clk 0:03:56.2]} 19... Nd7
{[%clk 0:02:19.7]} 20. Nd3 {[%clk 0:03:43.6]} 20... Nxe2+ {[%clk 0:02:11.5]} 21.
Qxe2 {[%clk 0:03:41.8]} 21... Ba6 {[%clk 0:02:10.9]} 22. Qc2 {[%clk 0:03:39.9]}
22... Rac8 {[%clk 0:01:53.4]} 23. Rfe1 {[%clk 0:03:34.5]} 23... c5 {[%clk
0:01:51.3]} 24. Nd2 {[%clk 0:03:31.3]} 24... a4 {[%clk 0:01:36.7]} 25. Nb2
{[%clk 0:03:28.9]} 25... axb3 {[%clk 0:01:27.3]} 26. axb3 {[%clk 0:03:28.8]}
26... Nb6 {[%clk 0:01:25.2]} 27. Nbc4 {[%clk 0:03:24.7]} 27... Bh6 {[%clk
0:01:10.1]} 28. Nd6 {[%clk 0:03:14]} 28... Red8 {[%clk 0:01:01.6]} 29. Nxc8
{[%clk 0:03:12.7]} 29... Rxc8 {[%clk 0:00:54]} 30. Nc4 {[%clk 0:03:10.2]} 30...
Nxc4 {[%clk 0:00:33.7]} 31. bxc4 {[%clk 0:03:01.8]} 31... Bb7 {[%clk 0:00:32.1]}
32. Bg3 {[%clk 0:02:59.6]} 32... Ra8 {[%clk 0:00:19.5]} 33. Kh2 {[%clk
0:02:57.7]} 33... Bf4 {[%clk 0:00:16.7]} 34. Ra1 {[%clk 0:02:52.1]} 34... Rd8
{[%clk 0:00:14.3]} 35. Red1 {[%clk 0:02:48.7]} 1-0

[Event "Live Chess"]
[Site "Chess.com"]
[Date "2023.05.20"]
[Round "-"]
[White "inspireyou"]
[Black "DaveL5678"]
[Result "1-0"]
[WhiteElo "1466"]
[BlackElo "1024"]
[TimeControl "300"]
[EndTime "15:15:07 PDT"]
[Termination "inspireyou won by checkmate"]

1. e4 {[%clk 0:04:57.6]} 1... e6 {[%clk 0:04:58.1]} 2. Bc4 {[%clk 0:04:57.2]}
2... d5 {[%clk 0:04:56.9]} 3. exd5 {[%clk 0:04:57.1]} 3... exd5 {[%clk
0:04:56.1]} 4. Bb3 {[%clk 0:04:57]} 4... Nf6 {[%clk 0:04:53.3]} 5. d4 {[%clk
0:04:56.3]} 5... c5 {[%clk 0:04:47.5]} 6. c3 {[%clk 0:04:55.4]} 6... c4 {[%clk
0:04:45.2]} 7. Bc2 {[%clk 0:04:54.1]} 7... Nc6 {[%clk 0:04:40.9]} 8. Bf4 {[%clk
0:04:52.4]} 8... Qe7+ {[%clk 0:04:34.9]} 9. Ne2 {[%clk 0:04:50.9]} 9... Bg4
{[%clk 0:04:25.2]} 10. Nd2 {[%clk 0:04:40]} 10... h6 {[%clk 0:04:07.5]} 11. h3
{[%clk 0:04:27.7]} 11... Bd7 {[%clk 0:03:55.4]} 12. O-O {[%clk 0:04:21.3]} 12...
O-O-O {[%clk 0:03:49.7]} 13. Nf3 {[%clk 0:04:16.6]} 13... Re8 {[%clk 0:03:45.7]}
14. Ne5 {[%clk 0:04:11.2]} 14... Nxe5 {[%clk 0:03:41.1]} 15. Bxe5 {[%clk
0:04:11.1]} 15... Ne4 {[%clk 0:03:24.6]} 16. Ng3 {[%clk 0:04:04.6]} 16... Nxg3
{[%clk 0:03:16.1]} 17. Bxg3 {[%clk 0:04:04.5]} 17... Qf6 {[%clk 0:03:02]} 18.
Qd2 {[%clk 0:03:58.3]} 18... Bd6 {[%clk 0:02:55.5]} 19. Rae1 {[%clk 0:03:52.4]}
19... Bxg3 {[%clk 0:02:42]} 20. fxg3 {[%clk 0:03:52.3]} 20... Rxe1 {[%clk
0:02:36.6]} 21. Rxe1 {[%clk 0:03:48.5]} 21... Qd6 {[%clk 0:02:23.7]} 22. Qf4
{[%clk 0:03:38.2]} 22... Qxf4 {[%clk 0:02:11.8]} 23. gxf4 {[%clk 0:03:38.1]}
23... Re8 {[%clk 0:02:06.9]} 24. Rxe8+ {[%clk 0:03:35.5]} 24... Bxe8 {[%clk
0:02:06.8]} 25. f5 {[%clk 0:03:34.4]} 25... Bd7 {[%clk 0:02:04.2]} 26. Kf2
{[%clk 0:03:32.1]} 26... Kd8 {[%clk 0:02:01.4]} 27. Kf3 {[%clk 0:03:29.3]} 27...
Ke7 {[%clk 0:02:00.5]} 28. Kf4 {[%clk 0:03:28.9]} 28... Kf6 {[%clk 0:01:59.7]}
29. g4 {[%clk 0:03:27.9]} 29... g5+ {[%clk 0:01:52.5]} 30. fxg6 {[%clk
0:03:25.3]} 30... fxg6 {[%clk 0:01:51.7]} 31. Kf3 {[%clk 0:03:05.8]} 31... Kg5
{[%clk 0:01:40.9]} 32. Kg3 {[%clk 0:03:02.3]} 32... h5 {[%clk 0:01:38.7]} 33.
h4+ {[%clk 0:03:00.2]} 33... Kh6 {[%clk 0:01:34.9]} 34. g5+ {[%clk 0:02:58.4]}
34... Kg7 {[%clk 0:01:32.9]} 35. Kf4 {[%clk 0:02:58.3]} 35... Kf7 {[%clk
0:01:28.4]} 36. Ke5 {[%clk 0:02:57.2]} 36... Ke7 {[%clk 0:01:26.4]} 37. Bxg6
{[%clk 0:02:54.3]} 37... Bg4 {[%clk 0:01:23.7]} 38. Bf5 {[%clk 0:02:54.2]} 38...
Bxf5 {[%clk 0:01:19.8]} 39. Kxf5 {[%clk 0:02:54.1]} 39... Kf7 {[%clk 0:01:18.9]}
40. g6+ {[%clk 0:02:53.7]} 40... Kg7 {[%clk 0:01:17.8]} 41. Kg5 {[%clk
0:02:53.6]} 41... b6 {[%clk 0:01:12]} 42. Kxh5 {[%clk 0:02:53.5]} 42... a6
{[%clk 0:01:09.6]} 43. Kg5 {[%clk 0:02:53.4]} 43... b5 {[%clk 0:01:07]} 44. h5
{[%clk 0:02:53.3]} 44... a5 {[%clk 0:01:05]} 45. h6+ {[%clk 0:02:53.2]} 45...
Kh8 {[%clk 0:01:01.5]} 46. a3 {[%clk 0:02:53.1]} 46... b4 {[%clk 0:00:58]} 47.
axb4 {[%clk 0:02:51.1]} 47... axb4 {[%clk 0:00:57.3]} 48. Kf6 {[%clk 0:02:49.5]}
48... bxc3 {[%clk 0:00:55.7]} 49. Kf7 {[%clk 0:02:33.4]} 49... cxb2 {[%clk
0:00:51.4]} 50. g7+ {[%clk 0:02:33.3]} 50... Kh7 {[%clk 0:00:49.7]} 51. g8=Q+
{[%clk 0:02:33.2]} 51... Kxh6 {[%clk 0:00:48.3]} 52. Qg6# {[%clk 0:02:33.1]} 1-0

[Event "Live Chess"]
[Site "Chess.com"]
[Date "2023.05.20"]
[Round "-"]
[White "McSlash1"]
[Black "Delacorta"]
[Result "1-0"]
[WhiteElo "2013"]
[BlackElo "1422"]
[TimeControl "300"]
[EndTime "15:15:10 PDT"]
[Termination "McSlash1 won by resignation"]

1. e4 {[%clk 0:04:59.3]} 1... e6 {[%clk 0:04:58.2]} 2. d4 {[%clk 0:04:58.5]}
2... d5 {[%clk 0:04:57.3]} 3. Nd2 {[%clk 0:04:58.1]} 3... b6 {[%clk 0:04:55.5]}
4. e5 {[%clk 0:04:56.1]} 4... Ba6 {[%clk 0:04:52.3]} 5. Bxa6 {[%clk 0:04:54.3]}
5... Nxa6 {[%clk 0:04:52.2]} 6. c3 {[%clk 0:04:53.5]} 6... Ne7 {[%clk
0:04:47.2]} 7. Qa4+ {[%clk 0:04:52.5]} 7... Qd7 {[%clk 0:04:38.8]} 8. Qxa6
{[%clk 0:04:50.9]} 8... b5 {[%clk 0:04:38.7]} 9. a4 {[%clk 0:04:47.3]} 9... Nc6
{[%clk 0:04:27.8]} 10. axb5 {[%clk 0:04:45]} 10... Nxd4 {[%clk 0:04:26.8]} 11.
cxd4 {[%clk 0:04:42.9]} 11... Qc8 {[%clk 0:04:25]} 12. Qc6+ {[%clk 0:04:38.7]}
12... Qd7 {[%clk 0:04:23.4]} 1-0

[Event "Live Chess"]
[Site "Chess.com"]
[Date "2023.05.20"]
[Round "-"]
[White "wot-not"]
[Black "Tushinskiy"]
[Result "0-1"]
[WhiteElo "1520"]
[BlackElo "2151"]
[TimeControl "300"]
[EndTime "15:15:13 PDT"]
[Termination "Tushinskiy won by resignation"]

1. d4 {[%clk 0:04:58.1]} 1... d5 {[%clk 0:04:58.4]} 2. c4 {[%clk 0:04:56.9]}
2... c6 {[%clk 0:04:58.3]} 3. cxd5 {[%clk 0:04:55.4]} 3... cxd5 {[%clk
0:04:57.4]} 4. Nc3 {[%clk 0:04:55.2]} 4... Nc6 {[%clk 0:04:57.3]} 5. Nf3 {[%clk
0:04:53.4]} 5... Nf6 {[%clk 0:04:57.2]} 6. Bg5 {[%clk 0:04:52.1]} 6... e6 {[%clk
0:04:52.3]} 7. e3 {[%clk 0:04:50.4]} 7... a6 {[%clk 0:04:51.2]} 8. Bd3 {[%clk
0:04:49.3]} 8... Be7 {[%clk 0:04:50.6]} 9. O-O {[%clk 0:04:48.2]} 9... b5 {[%clk
0:04:50]} 10. a3 {[%clk 0:04:47.3]} 10... Bb7 {[%clk 0:04:49.3]} 11. Qc2 {[%clk
0:04:42.7]} 11... Rc8 {[%clk 0:04:48.3]} 12. Rac1 {[%clk 0:04:37.3]} 12... h6
{[%clk 0:04:43.4]} 13. Bh4 {[%clk 0:04:35.9]} 13... O-O {[%clk 0:04:42.2]} 14.
Qe2 {[%clk 0:04:31]} 14... Na5 {[%clk 0:04:38.4]} 15. Nd2 {[%clk 0:04:23.5]}
15... Nc4 {[%clk 0:04:35.3]} 16. Nxc4 {[%clk 0:04:22.3]} 16... dxc4 {[%clk
0:04:35.2]} 17. Bb1 {[%clk 0:04:19.8]} 17... Nd5 {[%clk 0:04:32.6]} 18. Bxe7
{[%clk 0:04:16.7]} 18... Nxe7 {[%clk 0:04:29.6]} 19. Qc2 {[%clk 0:04:11.9]}
19... f5 {[%clk 0:04:27.2]} 20. f3 {[%clk 0:03:52.5]} 20... Qb6 {[%clk
0:04:22.1]} 21. Ne2 {[%clk 0:03:40.1]} 21... Nd5 {[%clk 0:04:17.9]} 22. Qd2
{[%clk 0:03:24.4]} 22... Rcd8 {[%clk 0:04:16.4]} 23. Ng3 {[%clk 0:03:02.6]}
23... Nxe3 {[%clk 0:03:49.9]} 24. Qxe3 {[%clk 0:02:55.1]} 24... f4 {[%clk
0:03:48.6]} 25. Qf2 {[%clk 0:02:27.6]} 25... fxg3 {[%clk 0:03:46.8]} 26. hxg3
{[%clk 0:02:26.9]} 26... Qxd4 {[%clk 0:03:45.2]} 27. Qxd4 {[%clk 0:02:24.9]}
27... Rxd4 {[%clk 0:03:45.1]} 28. Rfe1 {[%clk 0:02:16.8]} 28... Kf7 {[%clk
0:03:43.1]} 29. Rc3 {[%clk 0:02:13.3]} 29... Rfd8 {[%clk 0:03:41.4]} 30. Rce3
{[%clk 0:02:12.5]} 30... R8d6 {[%clk 0:03:40.7]} 31. Kf1 {[%clk 0:01:58.6]}
31... Rd1 {[%clk 0:03:37.2]} 32. Kf2 {[%clk 0:01:52.2]} 32... Rxe1 {[%clk
0:03:31.2]} 33. Rxe1 {[%clk 0:01:51.2]} 33... Kf6 {[%clk 0:03:30.8]} 34. Be4
{[%clk 0:01:45.1]} 34... Bxe4 {[%clk 0:03:27.2]} 35. Rxe4 {[%clk 0:01:44]} 35...
Rd3 {[%clk 0:03:23.4]} 36. f4 {[%clk 0:01:36.7]} 36... Rb3 {[%clk 0:03:19.1]}
37. Re2 {[%clk 0:01:35]} 37... a5 {[%clk 0:03:17.6]} 38. g4 {[%clk 0:01:33]}
38... b4 {[%clk 0:03:11.6]} 39. axb4 {[%clk 0:01:31.2]} 39... axb4 {[%clk
0:03:11.5]} 40. g3 {[%clk 0:01:30.5]} 40... g5 {[%clk 0:03:06.1]} 41. Rc2 {[%clk
0:01:21.1]} 41... c3 {[%clk 0:03:01.7]} 42. bxc3 {[%clk 0:01:19.8]} 42... Rxc3
{[%clk 0:03:01.6]} 43. Rb2 {[%clk 0:01:17.9]} 43... b3 {[%clk 0:03:00.2]} 44.
fxg5+ {[%clk 0:01:04.9]} 44... hxg5 {[%clk 0:02:58.5]} 45. Rb1 {[%clk
0:01:01.6]} 45... Ke5 {[%clk 0:02:54.2]} 46. Re1+ {[%clk 0:00:55.4]} 46... Kd5
{[%clk 0:02:53.2]} 47. Rd1+ {[%clk 0:00:54.3]} 47... Kc4 {[%clk 0:02:52.3]} 48.
Re1 {[%clk 0:00:53.3]} 48... b2 {[%clk 0:02:50.7]} 0-1

[Event "Live Chess"]
[Site "Chess.com"]
[Date "2023.05.20"]
[Round "-"]
[White "Hoogleboogle"]
[Black "elvenstar"]
[Result "0-1"]
[WhiteElo "1353"]
[BlackElo "1573"]
[TimeControl "300"]
[EndTime "15:15:25 PDT"]
[Termination "elvenstar won by checkmate"]

1. d4 {[%clk 0:04:53.6]} 1... Nf6 {[%clk 0:04:58]} 2. c4 {[%clk 0:04:53.1]} 2...
d5 {[%clk 0:04:53.9]} 3. Nc3 {[%clk 0:04:51.4]} 3... e6 {[%clk 0:04:51.1]} 4.
Bf4 {[%clk 0:04:48.9]} 4... Bd6 {[%clk 0:04:49]} 5. Bg3 {[%clk 0:04:45.9]} 5...
O-O {[%clk 0:04:46.2]} 6. e3 {[%clk 0:04:43.3]} 6... b6 {[%clk 0:04:43.2]} 7.
Bd3 {[%clk 0:04:35.4]} 7... Nc6 {[%clk 0:04:39.2]} 8. cxd5 {[%clk 0:04:32.4]}
8... Nxd5 {[%clk 0:04:33.1]} 9. Nxd5 {[%clk 0:04:31]} 9... exd5 {[%clk
0:04:31.6]} 10. Qc2 {[%clk 0:04:27.9]} 10... Bb4+ {[%clk 0:04:10.2]} 11. Ke2
{[%clk 0:04:16.9]} 11... Qf6 {[%clk 0:03:36.6]} 12. Bxh7+ {[%clk 0:04:10.7]}
12... Kh8 {[%clk 0:03:34.9]} 13. Bd3 {[%clk 0:04:03.6]} 13... Re8 {[%clk
0:03:33.5]} 14. Nf3 {[%clk 0:03:56.7]} 14... Nxd4+ {[%clk 0:02:57.4]} 15. Nxd4
{[%clk 0:03:51.9]} 15... Qxd4 {[%clk 0:02:37.9]} 16. Bxc7 {[%clk 0:03:45.9]}
16... Bg4+ {[%clk 0:02:31.3]} 17. Kf1 {[%clk 0:03:31.3]} 17... Qf6 {[%clk
0:02:16.6]} 18. h3 {[%clk 0:03:10.4]} 18... Bd7 {[%clk 0:02:02.8]} 19. h4 {[%clk
0:02:53.3]} 19... Rxe3 {[%clk 0:01:57.4]} 20. h5 {[%clk 0:02:44.8]} 20... Rae8
{[%clk 0:01:50.1]} 21. h6 {[%clk 0:02:37.1]} 21... Re1+ {[%clk 0:01:44.8]} 22.
Rxe1 {[%clk 0:02:34.2]} 22... Rxe1# {[%clk 0:01:43.1]} 0-1

[Event "Live Chess"]
[Site "Chess.com"]
[Date "2023.05.20"]
[Round "-"]
[White "omisoc"]
[Black "raminguy"]
[Result "1-0"]
[WhiteElo "2144"]
[BlackElo "1948"]
[TimeControl "300"]
[EndTime "15:15:46 PDT"]
[Termination "omisoc won by resignation"]

1. Nf3 {[%clk 0:04:55.1]} 1... Nf6 {[%clk 0:04:58.8]} 2. b3 {[%clk 0:04:51.3]}
2... e6 {[%clk 0:04:57.8]} 3. Bb2 {[%clk 0:04:50.4]} 3... d5 {[%clk 0:04:57.5]}
4. e3 {[%clk 0:04:49.4]} 4... Be7 {[%clk 0:04:57.1]} 5. c4 {[%clk 0:04:47.2]}
5... O-O {[%clk 0:04:56]} 6. g3 {[%clk 0:04:44.3]} 6... a6 {[%clk 0:04:55.2]} 7.
Bg2 {[%clk 0:04:43.1]} 7... dxc4 {[%clk 0:04:54]} 8. bxc4 {[%clk 0:04:41.4]}
8... c5 {[%clk 0:04:53.1]} 9. O-O {[%clk 0:04:39.4]} 9... Nc6 {[%clk 0:04:52.1]}
10. Qe2 {[%clk 0:04:38.3]} 10... e5 {[%clk 0:04:50.3]} 11. Nxe5 {[%clk
0:04:35.2]} 11... Nxe5 {[%clk 0:04:50.2]} 12. Bxe5 {[%clk 0:04:33.3]} 12... Nd7
{[%clk 0:04:45]} 13. Bb2 {[%clk 0:04:28.6]} 13... Bf6 {[%clk 0:04:42.9]} 14.
Bxf6 {[%clk 0:04:18.8]} 14... Nxf6 {[%clk 0:04:42.8]} 15. Nc3 {[%clk 0:04:17]}
15... Rb8 {[%clk 0:04:40.4]} 16. h3 {[%clk 0:03:50.3]} 16... b6 {[%clk
0:04:36.6]} 17. a4 {[%clk 0:03:46.8]} 17... Be6 {[%clk 0:04:34.2]} 18. Rab1
{[%clk 0:03:41.4]} 18... Qd7 {[%clk 0:04:30]} 19. Rb2 {[%clk 0:03:37.5]} 19...
Bxh3 {[%clk 0:04:28]} 20. Rfb1 {[%clk 0:03:35.1]} 20... Bxg2 {[%clk 0:04:26.6]}
21. Kxg2 {[%clk 0:03:34.8]} 21... Qc6+ {[%clk 0:04:20]} 22. Qf3 {[%clk
0:03:33.2]} 22... Qd6 {[%clk 0:04:18.3]} 23. Qf4 {[%clk 0:03:24.3]} 23... Qd8
{[%clk 0:04:06.4]} 24. a5 {[%clk 0:03:18.8]} 24... b5 {[%clk 0:04:02.4]} 25.
cxb5 {[%clk 0:03:17.9]} 25... axb5 {[%clk 0:04:02.3]} 26. Rxb5 {[%clk
0:03:13.4]} 26... Rxb5 {[%clk 0:04:00.8]} 27. Rxb5 {[%clk 0:03:12.4]} 27... Qxd2
{[%clk 0:04:00]} 28. Rxc5 {[%clk 0:03:08.7]} 28... h6 {[%clk 0:03:32.5]} 29. Qd4
{[%clk 0:02:47.8]} 29... Qc2 {[%clk 0:02:49.5]} 30. Nd5 {[%clk 0:02:30.8]} 30...
Qe4+ {[%clk 0:02:46.7]} 31. Qxe4 {[%clk 0:02:29.3]} 31... Nxe4 {[%clk
0:02:46.2]} 32. Rc4 {[%clk 0:02:22.6]} 32... Nd6 {[%clk 0:02:45]} 33. Ra4 {[%clk
0:02:20.9]} 33... Ra8 {[%clk 0:02:42.4]} 34. a6 {[%clk 0:02:07.4]} 34... Nb5
{[%clk 0:02:37]} 35. Ra5 {[%clk 0:02:03.5]} 35... Nd6 {[%clk 0:02:25.6]} 36. Nb4
{[%clk 0:01:47.6]} 36... Nc8 {[%clk 0:02:22.7]} 37. Nc6 {[%clk 0:01:37.7]} 37...
Kf8 {[%clk 0:02:20.8]} 38. a7 {[%clk 0:01:21.3]} 38... Ke8 {[%clk 0:02:18.9]}
39. Rb5 {[%clk 0:01:18.7]} 39... Rxa7 {[%clk 0:01:59.3]} 40. Nxa7 {[%clk
0:01:16.4]} 40... Nxa7 {[%clk 0:01:59.2]} 41. Rb8+ {[%clk 0:01:12.1]} 1-0

[Event "Live Chess"]
[Site "Chess.com"]
[Date "2023.05.20"]
[Round "-"]
[White "mikkyb4"]
[Black "Daniel_Gliddon_FA"]
[Result "0-1"]
[WhiteElo "1002"]
[BlackElo "1322"]
[TimeControl "300"]
[EndTime "15:15:48 PDT"]
[Termination "Daniel_Gliddon_FA won by resignation"]

1. e4 {[%clk 0:04:57.3]} 1... d6 {[%clk 0:04:51.3]} 2. b3 {[%clk 0:04:54.5]}
2... Nf6 {[%clk 0:04:49.6]} 3. Nc3 {[%clk 0:04:50.8]} 3... g6 {[%clk 0:04:47.2]}
4. Bb2 {[%clk 0:04:48.9]} 4... Bg7 {[%clk 0:04:45.9]} 5. d4 {[%clk 0:04:47.6]}
5... O-O {[%clk 0:04:40.8]} 6. Qf3 {[%clk 0:04:33.2]} 6... Bg4 {[%clk
0:04:35.3]} 7. Qg3 {[%clk 0:04:29.2]} 7... Qd7 {[%clk 0:04:30.3]} 8. Be2 {[%clk
0:04:27]} 8... Nh5 {[%clk 0:04:26.7]} 9. Qd3 {[%clk 0:04:19.4]} 9... Nf4 {[%clk
0:04:19]} 10. Qg3 {[%clk 0:03:56.3]} 10... Nxe2 {[%clk 0:03:55]} 11. Ngxe2
{[%clk 0:03:54]} 11... Bxe2 {[%clk 0:03:50.8]} 12. Nxe2 {[%clk 0:03:52.8]} 12...
Qc6 {[%clk 0:03:46.6]} 13. Qd3 {[%clk 0:03:34.3]} 13... e5 {[%clk 0:03:37.7]}
14. d5 {[%clk 0:03:32.6]} 14... Qb6 {[%clk 0:03:32.6]} 15. h4 {[%clk 0:03:21.1]}
15... Nd7 {[%clk 0:03:26.6]} 16. h5 {[%clk 0:03:18.9]} 16... Nc5 {[%clk
0:03:23.3]} 17. Qh3 {[%clk 0:03:03.1]} 17... h6 {[%clk 0:03:07.4]} 18. O-O-O
{[%clk 0:02:50.7]} 18... Nxe4 {[%clk 0:03:02.5]} 19. hxg6 {[%clk 0:02:29.7]}
19... fxg6 {[%clk 0:02:52.3]} 20. Qe6+ {[%clk 0:01:58.8]} 20... Kh7 {[%clk
0:02:44.7]} 21. Rxh6+ {[%clk 0:01:49.3]} 21... Bxh6+ {[%clk 0:02:31.8]} 22. Kb1
{[%clk 0:01:39]} 22... Nd2+ {[%clk 0:02:30.2]} 23. Ka1 {[%clk 0:01:35.8]} 23...
Rxf2 {[%clk 0:02:18.3]} 24. Rh1 {[%clk 0:01:30.4]} 24... Rf1+ {[%clk 0:02:16.8]}
25. Nc1 {[%clk 0:01:27.9]} 25... Rxh1 {[%clk 0:02:14]} 26. Qf7+ {[%clk
0:01:24.9]} 26... Bg7 {[%clk 0:02:09.9]} 0-1